fUST/lending_fUST_20240721
["ID","MTS","AMOUNT","RATE_DAILY","PERIOD"]
[332763257,1721507462988,-507.62,0.00014794,2]
[332763258,1721507462998,-673.62,0.00014794,2]
[332763259,1721507463008,-503.98,0.00014794,2]
[332763260,1721507463017,-500.0,0.00014794,2]
[332763261,1721507463027,-2207.67,0.00014794,2]
[332763262,1721507463037,-500.0,0.00014794,2]
[332763263,1721507463046,-663.18,0.00014794,2]
[332763264,1721507463056,-500.0,0.00014794,2]
[332763265,1721507463066,-616.11,0.00014794,2]
[332763266,1721507463077,-500.0,0.00014794,2]
[332763267,1721507463087,-500.0,0.00014794,2]
[332763268,1721507463098,-500.0,0.00014794,2]
[332763269,1721507463107,-610.06,0.00014794,2]
[332763270,1721507463117,-500.0,0.00014794,2]
[332763271,1721507463127,-500.0,0.00014794,2]
[332763272,1721507463136,-500.0,0.00014794,2]
[332763273,1721507463146,-500.0,0.00014794,2]
[332763274,1721507463157,-683.83,0.00014794,2]
[332763275,1721507463167,-500.0,0.00014794,2]
[332763276,1721507463177,-500.0,0.00014794,2]
[332763277,1721507463186,-782.62,0.00014794,2]
[332763278,1721507463196,-517.33,0.00014794,2]
[332763279,1721507463206,-3151.21,0.00014794,2]
[332763280,1721507463215,-351.71501332,0.00014794,2]
[332763281,1721507463226,-500.0,0.00014794,2]
[332763282,1721507463236,-840.58,0.00014794,2]
[332763283,1721507463246,-500.0,0.00014794,2]
[332763284,1721507463255,-500.0,0.00014794,2]
[332763285,1721507463265,-1631.65,0.00014794,2]
[332763286,1721507463275,-626.98,0.00014794,2]
[332763287,1721507463290,-966.95,0.00014794,2]
[332763288,1721507463300,-500.0,0.00014794,2]
[332763289,1721507463309,-781.68,0.00014794,2]
[332763290,1721507463319,-2254.27,0.00014794,2]
[332763291,1721507463330,-500.0,0.00014794,2]
[332763292,1721507463340,-2931.06,0.00014794,2]
[332763293,1721507463350,-617.77,0.00014794,2]
[332763294,1721507463360,-653.01,0.00014794,2]
[332763295,1721507463371,-500.0,0.00014794,2]
[332763296,1721507463381,-1121.97,0.00014794,2]
[332763297,1721507463393,-2062.41,0.00014794,2]
[332763298,1721507463402,-696.35,0.00014794,2]
[332763299,1721507463412,-500.0,0.00014794,2]
[332763300,1721507463422,-500.0,0.00014794,2]
[332763301,1721507463432,-500.0,0.00014794,2]
[332763302,1721507463442,-1163.39,0.00014794,2]
[332763303,1721507463452,-577.70418545,0.00014794,2]
[332763304,1721507463461,-500.0,0.00014794,2]
[332763305,1721507463471,-500.0,0.00014794,2]
[332763306,1721507463480,-1152.29,0.00014794,2]
[332763307,1721507463490,-500.0,0.00014794,2]
[332763308,1721507463500,-500.0,0.00014794,2]
[332763309,1721507463509,-1160.73,0.00014794,2]
[332763310,1721507463520,-500.0,0.00014794,2]
[332763311,1721507463530,-722.0,0.00014794,2]
[332763312,1721507463539,-500.0,0.00014794,2]
[332763313,1721507463549,-4128.71,0.00014794,2]
[332763314,1721507463559,-568.79,0.00014794,2]
[332763315,1721507463569,-500.0,0.00014794,2]
[332763316,1721507463578,-500.0,0.00014794,2]
[332763317,1721507463588,-500.0,0.00014794,2]
[332763318,1721507463597,-698.52,0.00014794,2]
[332763319,1721507463607,-1470.23,0.00014794,2]
[332763320,1721507463617,-500.0,0.00014794,2]
[332763321,1721507463626,-500.0,0.00014794,2]
[332763322,1721507463636,-500.0,0.00014794,2]
[332763323,1721507463646,-500.0,0.00014794,2]
[332763324,1721507463655,-594.58,0.00014794,2]
[332763325,1721507463665,-1951.53,0.00014794,2]
[332763326,1721507463675,-612.79,0.00014794,2]
[332763327,1721507463684,-874.33,0.00014794,2]
[332763328,1721507463694,-500.0,0.00014794,2]
[332763329,1721507463704,-500.0,0.00014794,2]
[332763330,1721507463713,-555.88,0.00014794,2]
[332763331,1721507463723,-632.84,0.00014794,2]
[332763332,1721507463733,-500.0,0.00014794,2]
[332763333,1721507463743,-500.0,0.00014794,2]
[332763334,1721507463752,-604.8,0.00014794,2]
[332763335,1721507463762,-500.0,0.00014794,2]
[332763336,1721507463772,-500.0,0.00014794,2]
[332763337,1721507463782,-500.0,0.00014794,2]
[332763338,1721507463791,-1853.19,0.00014794,2]
[332763339,1721507463802,-500.0,0.00014794,2]
[332763340,1721507463811,-500.0,0.00014794,2]
[332763341,1721507463820,-500.0,0.00014794,2]
[332763342,1721507463830,-1845.627948,0.00014794,2]
[332763343,1721507463840,-500.0,0.00014794,2]
[332763344,1721507463850,-1845.627948,0.00014794,2]
[332763345,1721507463861,-568.79,0.00014794,2]
[332763346,1721507463870,-774.02,0.00014794,2]
[332763347,1721507463880,-500.0,0.00014794,2]
[332763348,1721507463890,-500.0,0.00014794,2]
[332763349,1721507463899,-800.39,0.00014794,2]
[332763350,1721507463909,-500.0,0.00014794,2]
[332763351,1721507463919,-151.0,0.00014794,2]
[332763352,1721507463929,-1327.2,0.00014794,2]
[332763353,1721507463939,-151.0,0.00014794,2]
[332763354,1721507463948,-902.78,0.00014794,2]
[332763355,1721507463958,-918.39,0.00014794,2]
[332763356,1721507463969,-500.0,0.00014794,2]
[332763357,1721507463979,-846.58,0.00014794,2]
[332763358,1721507463989,-533.42,0.00014794,2]
[332763359,1721507463999,-500.0,0.00014794,2]
[332763360,1721507464010,-500.0,0.00014794,2]
[332763361,1721507464021,-983.38,0.00014794,2]
[332763362,1721507464031,-2661.93,0.00014794,2]
[332763363,1721507464040,-1149.42648312,0.00014794,2]
[332763364,1721507464499,-154.76012181,0.00013156,2]
[332763365,1721507464509,-6330.36419722,0.0001452,2]
[332763366,1721507464568,-3644.51580278,0.0001452,2]
[332763367,1721507464578,-646.70351688,0.00014794,2]
[332763368,1721507464588,-1825.24,0.00014794,2]
[332763369,1721507464598,-500.0,0.00014794,2]
[332763370,1721507464607,-2146.19,0.00014794,2]
[332763371,1721507464618,-500.0,0.00014794,2]
[332763372,1721507464627,-500.0,0.00014794,2]
[332763373,1721507464637,-500.0,0.00014794,2]
[332763374,1721507464647,-500.0,0.00014794,2]
[332763375,1721507464656,-500.0,0.00014794,2]
[332763376,1721507464666,-500.0,0.00014794,2]
[332763377,1721507464675,-500.0,0.00014794,2]
[332763378,1721507464685,-2189.06,0.00014794,2]
[332763379,1721507464694,-500.0,0.00014794,2]
[332763380,1721507464704,-500.0,0.00014794,2]
[332763381,1721507464714,-575.38,0.00014794,2]
[332763382,1721507464723,-538.74851506,0.00014794,2]
[332763383,1721507464732,-500.0,0.00014794,2]
[332763384,1721507464742,-2105.24,0.00014794,2]
[332763385,1721507464751,-724.24,0.00014794,2]
[332763386,1721507464761,-500.0,0.00014794,2]
[332763387,1721507464771,-500.0,0.00014794,2]
[332763388,1721507464781,-500.0,0.00014794,2]
[332763389,1721507464790,-500.0,0.00014794,2]
[332763390,1721507464800,-500.0,0.00014794,2]
[332763391,1721507464810,-583.13,0.00014794,2]
[332763392,1721507464820,-963.1,0.00014794,2]
[332763393,1721507464829,-500.0,0.00014794,2]
[332763394,1721507464839,-173.50801192,0.00014794,2]
[332763395,1721507464849,-528.05,0.00014794,2]
[332763396,1721507464858,-500.0,0.00014794,2]
[332763397,1721507464868,-776.96,0.00014794,2]
[332763398,1721507464878,-1350.44,0.00014794,2]
[332763399,1721507464888,-500.0,0.00014794,2]
[332763400,1721507464897,-806.85,0.00014794,2]
[332763401,1721507464907,-1833.59,0.00014794,2]
[332763402,1721507464916,-1111.94,0.00014794,2]
[332763403,1721507464925,-3866.05,0.00014794,2]
[332763404,1721507464935,-500.0,0.00014794,2]
[332763405,1721507464945,-720.16,0.00014794,2]
[332763406,1721507464954,-1045.95,0.00014794,2]
[332763407,1721507464963,-2426.91,0.00014794,2]
[332763408,1721507464973,-500.0,0.00014794,2]
[332763409,1721507464983,-500.0,0.00014794,2]
[332763410,1721507464993,-1586.84,0.00014794,2]
[332763411,1721507465002,-551.71990465,0.00014794,2]
[332763412,1721507465011,-889.11,0.00014794,2]
[332763413,1721507465020,-2116.62,0.00014794,2]
[332763414,1721507465029,-3632.24,0.00014794,2]
[332763415,1721507465039,-1237.75,0.00014794,2]
[332763416,1721507465050,-4757.55,0.00014794,2]
[332763417,1721507465061,-504.12320318,0.00014794,2]
[332763418,1721507465071,-2898.13,0.00014794,2]
[332763419,1721507465082,-782.62,0.00014794,2]
[332763420,1721507465094,-622.39,0.00014794,2]
[332763421,1721507465105,-2959.65,0.00014794,2]
[332763422,1721507465117,-500.0,0.00014794,2]
[332763423,1721507465128,-500.0,0.00014794,2]
[332763424,1721507465139,-500.0,0.00014794,2]
[332763425,1721507465149,-762.0,0.00014794,2]
[332763426,1721507465160,-2539.74,0.00014794,2]
[332763427,1721507465172,-620.28,0.00014794,2]
[332763428,1721507465184,-558.88,0.00014794,2]
[332763429,1721507465194,-3610.2,0.00014794,2]
[332763430,1721507465203,-653.11,0.00014794,2]
[332763431,1721507465214,-500.0,0.00014794,2]
[332763432,1721507465225,-922.66,0.00014794,2]
[332763433,1721507465236,-500.0,0.00014794,2]
[332763434,1721507465245,-9525.09,0.00014794,2]
[332763435,1721507465256,-1636.19,0.00014794,2]
[332763436,1721507465266,-203.6,0.00014794,2]
[332763437,1721507465277,-2521.08,0.00014794,2]
[332763438,1721507465286,-668.41,0.00014794,2]
[332763439,1721507465296,-5492.89,0.00014794,2]
[332763440,1721507465306,-2936.55,0.00014794,2]
[332763441,1721507465316,-1876.24,0.00014794,2]
[332763442,1721507465327,-688.02,0.00014794,2]
[332763443,1721507465337,-1164.01,0.00014794,2]
[332763444,1721507465347,-500.0,0.00014794,2]
[332763445,1721507465357,-500.0,0.00014794,2]
[332763446,1721507465367,-500.0,0.00014794,2]
[332763447,1721507465377,-597.65,0.00014794,2]
[332763448,1721507465388,-277.36100897,0.00014794,2]
[332763449,1721507465397,-500.0,0.00014794,2]
[332763450,1721507465407,-615.32,0.00014794,2]
[332763451,1721507465418,-680.97,0.00014794,2]
[332763452,1721507465428,-5204.55,0.00014794,2]
[332763453,1721507465438,-534.36,0.00014794,2]
[332763454,1721507465448,-500.0,0.00014794,2]
[332763455,1721507465458,-223.085694,0.00014794,2]
[332763456,1721507465468,-18390.94,0.00014794,2]
[332763457,1721507465478,-223.085694,0.00014794,2]
[332763458,1721507465488,-500.0,0.00014794,2]
[332763459,1721507465499,-500.0,0.00014794,2]
[332763460,1721507465509,-3826.08,0.00014794,2]
[332763461,1721507465519,-993.33,0.00014794,2]
[332763462,1721507465529,-694.69,0.00014794,2]
[332763463,1721507465539,-500.0,0.00014794,2]
[332763464,1721507465549,-500.0,0.00014794,2]
[332763465,1721507465559,-2030.73,0.00014794,2]
[332763466,1721507465568,-650.96,0.00014794,2]
[332763467,1721507465578,-2230.68,0.00014794,2]
[332763468,1721507465588,-1066.37,0.00014794,2]
[332763469,1721507465598,-3050.09,0.00014794,2]
[332763470,1721507465608,-500.0,0.00014794,2]
[332763471,1721507465619,-500.0,0.00014794,2]
[332763472,1721507465628,-500.0,0.00014794,2]
[332763473,1721507465638,-11096.32,0.00014794,2]
[332763474,1721507465648,-732.38,0.00014794,2]
[332763475,1721507465658,-4979.9,0.00014794,2]
[332763476,1721507465668,-606.15,0.00014794,2]
[332763477,1721507465679,-646.41947755,0.00014794,2]
[332763478,1721507465689,-500.0,0.00014794,2]
[332763479,1721507465699,-1373.89,0.00014794,2]
[332763480,1721507465710,-2679.12,0.00014794,2]
[332763481,1721507465720,-4593.9,0.00014794,2]
[332763482,1721507465729,-3152.44,0.00014794,2]
[332763483,1721507465739,-2055.25,0.00014794,2]
[332763484,1721507465750,-169.5171672,0.00014794,2]
[332763485,1721507465760,-500.0,0.00014794,2]
[332763486,1721507465770,-1077.09,0.00014794,2]
[332763487,1721507465780,-615.57,0.00014794,2]
[332763488,1721507465790,-500.0,0.00014794,2]
[332763489,1721507465800,-653.33,0.00014794,2]
[332763490,1721507465811,-500.0,0.00014794,2]
[332763491,1721507465820,-1961.3,0.00014794,2]
[332763492,1721507465831,-1149.23,0.00014794,2]
[332763493,1721507465842,-500.0,0.00014794,2]
[332763494,1721507465852,-523.71,0.00014794,2]
[332763495,1721507465863,-588.32,0.00014794,2]
[332763496,1721507465875,-1717.99,0.00014794,2]
[332763497,1721507465885,-611.84,0.00014794,2]
[332763498,1721507465897,-1361.98,0.00014794,2]
[332763499,1721507465907,-500.0,0.00014794,2]
[332763500,1721507465917,-2600.56,0.00014794,2]
[332763501,1721507465927,-3138.15,0.00014794,2]
[332763502,1721507465936,-1456.198574,0.00014794,2]
[332763503,1721507465947,-500.0,0.00014794,2]
[332763504,1721507465957,-1486.97,0.00014794,2]
[332763505,1721507465966,-2758.06,0.00014794,2]
[332763506,1721507465977,-500.0,0.00014794,2]
[332763507,1721507465987,-500.0,0.00014794,2]
[332763508,1721507465997,-1456.198574,0.00014794,2]
[332763509,1721507466007,-1314.88,0.00014794,2]
[332763510,1721507466018,-1235.35,0.00014794,2]
[332763511,1721507466028,-500.0,0.00014794,2]
[332763512,1721507466038,-944.37,0.00014794,2]
[332763513,1721507466049,-1593.99,0.00014794,2]
[332763514,1721507466059,-500.0,0.00014794,2]
[332763515,1721507466069,-1289.95,0.00014794,2]
[332763516,1721507466079,-1524.61,0.00014794,2]
[332763517,1721507466090,-950.65,0.00014794,2]
[332763518,1721507466100,-982.46,0.00014794,2]
[332763519,1721507466110,-9556.66,0.00014794,2]
[332763520,1721507466120,-500.0,0.00014794,2]
[332763521,1721507466131,-33384.86,0.00014794,2]
[332763522,1721507466141,-1089.64,0.00014794,2]
[332763523,1721507466151,-500.0,0.00014794,2]
[332763524,1721507466162,-1464.73,0.00014794,2]
[332763525,1721507466172,-922.08,0.00014794,2]
[332763526,1721507466183,-774.09,0.00014794,2]
[332763527,1721507466193,-1588.67,0.00014794,2]
[332763528,1721507466204,-500.0,0.00014794,2]
[332763529,1721507466216,-848.62,0.00014794,2]
[332763530,1721507466231,-510.81,0.00014794,2]
[332763531,1721507466246,-2131.14,0.00014794,2]
[332763532,1721507466260,-316.51745754,0.00014794,2]
[332763533,1721507466271,-343.67415429,0.00014794,2]
[332763534,1721507466291,-500.0,0.00014794,2]
[332763535,1721507466304,-2374.54,0.00014794,2]
[332763536,1721507466318,-500.0,0.00014794,2]
[332763537,1721507466333,-3023.06,0.00014794,2]
[332763538,1721507466346,-742.6,0.00014794,2]
[332763539,1721507466362,-500.0,0.00014794,2]
[332763540,1721507466376,-293.11655243,0.00014794,2]
[332763541,1721507466388,-500.0,0.00014794,2]
[332763542,1721507466401,-1361.91,0.00014794,2]
[332763543,1721507466414,-1323.32,0.00014794,2]
[332763544,1721507466427,-500.0,0.00014794,2]
[332763545,1721507466440,-500.0,0.00014794,2]
[332763546,1721507466452,-500.0,0.00014794,2]
[332763547,1721507466463,-2248.5,0.00014794,2]
[332763548,1721507466475,-500.0,0.00014794,2]
[332763549,1721507466487,-2439.5,0.00014794,2]
[332763550,1721507466501,-1273.27,0.00014794,2]
[332763551,1721507466515,-10329.82977997,0.00014794,2]
[332763552,1721507467024,-153.0,0.0001411,2]
[332763553,1721507467036,-3944.76022003,0.00014794,2]
[332763554,1721507467047,-500.0,0.00014794,2]
[332763555,1721507467058,-500.0,0.00014794,2]
[332763556,1721507467070,-585.29,0.00014794,2]
[332763557,1721507467081,-525.3,0.00014794,2]
[332763558,1721507467094,-9974.88,0.00014794,2]
[332763559,1721507467105,-403.2965578,0.00014917,2]
[332763560,1721507467117,-2106.82215836,0.00014938,2]
[332763561,1721507467131,-2426.31493042,0.00015,2]
[332763562,1721507467144,-2843.70100215,0.00015,2]
[332763563,1721507467155,-1044.05000901,0.00015,2]
[332763564,1721507467167,-812.17,0.00015068,2]
[332763565,1721507467179,-500.0,0.00015068,2]
[332763566,1721507467190,-933.32,0.00015068,2]
[332763567,1721507467201,-500.0,0.00015068,2]
[332763568,1721507467212,-778.5,0.00015068,2]
[332763569,1721507467225,-500.0,0.00015068,2]
[332763570,1721507467236,-1043.63,0.00015068,2]
[332763571,1721507467248,-221.27134037,0.00015068,2]
[332763572,1721507467259,-531.66485666,0.00015068,2]
[332763573,1721507467271,-579.52,0.00015068,2]
[332763574,1721507467282,-669.97,0.00015068,2]
[332763575,1721507467293,-500.0,0.00015068,2]
[332763576,1721507467305,-500.0,0.00015068,2]
[332763577,1721507467317,-500.0,0.00015068,2]
[332763578,1721507467328,-500.0,0.00015068,2]
[332763579,1721507467339,-526.28,0.00015068,2]
[332763580,1721507467351,-151.04087616,0.00015068,2]
[332763581,1721507467363,-1010.99,0.00015068,2]
[332763582,1721507467375,-608.3971694,0.00015068,2]
[332763583,1721507467387,-500.0,0.00015068,2]
[332763584,1721507467398,-500.0,0.00015068,2]
[332763585,1721507467410,-940.75,0.00015068,2]
[332763586,1721507467422,-500.0,0.00015068,2]
[332763587,1721507467434,-659.36,0.00015068,2]
[332763588,1721507467447,-500.0,0.00015068,2]
[332763589,1721507467458,-500.0,0.00015068,2]
[332763590,1721507467470,-598.5,0.00015068,2]
[332763591,1721507467480,-500.0,0.00015068,2]
[332763592,1721507467492,-500.0,0.00015068,2]
[332763593,1721507467503,-500.0,0.00015068,2]
[332763594,1721507467514,-500.0,0.00015068,2]
[332763595,1721507467526,-500.0,0.00015068,2]
[332763596,1721507467537,-500.0,0.00015068,2]
[332763597,1721507467550,-500.0,0.00015068,2]
[332763598,1721507467561,-500.0,0.00015068,2]
[332763599,1721507467570,-942.25,0.00015068,2]
[332763600,1721507467579,-500.0,0.00015068,2]
[332763601,1721507467589,-500.0,0.00015068,2]
[332763602,1721507467598,-500.0,0.00015068,2]
[332763603,1721507467607,-500.0,0.00015068,2]
[332763604,1721507467617,-507.62,0.00015068,2]
[332763605,1721507467626,-673.62,0.00015068,2]
[332763606,1721507467636,-503.98,0.00015068,2]
[332763607,1721507467645,-2207.67,0.00015068,2]
[332763608,1721507467654,-500.0,0.00015068,2]
[332763609,1721507467664,-663.18,0.00015068,2]
[332763610,1721507467673,-500.0,0.00015068,2]
[332763611,1721507467682,-616.11,0.00015068,2]
[332763612,1721507467692,-500.0,0.00015068,2]
[332763613,1721507467701,-500.0,0.00015068,2]
[332763614,1721507467711,-500.0,0.00015068,2]
[332763615,1721507467720,-610.06,0.00015068,2]
[332763616,1721507467730,-500.0,0.00015068,2]
[332763617,1721507467739,-500.0,0.00015068,2]
[332763618,1721507467748,-570.59373138,0.00015068,2]
[332763619,1721507467758,-683.83,0.00015068,2]
[332763620,1721507467767,-500.0,0.00015068,2]
[332763621,1721507467777,-500.0,0.00015068,2]
[332763622,1721507467786,-782.62,0.00015068,2]
[332763623,1721507467796,-517.33,0.00015068,2]
[332763624,1721507467805,-3151.21,0.00015068,2]
[332763625,1721507467815,-500.0,0.00015068,2]
[332763626,1721507467825,-840.58,0.00015068,2]
[332763627,1721507467834,-500.0,0.00015068,2]
[332763628,1721507467844,-500.0,0.00015068,2]
[332763629,1721507467853,-626.98,0.00015068,2]
[332763630,1721507467863,-1631.65,0.00015068,2]
[332763631,1721507467873,-966.95,0.00015068,2]
[332763632,1721507467883,-781.68,0.00015068,2]
[332763633,1721507467893,-2254.27,0.00015068,2]
[332763634,1721507467903,-500.0,0.00015068,2]
[332763635,1721507467912,-2931.06,0.00015068,2]
[332763636,1721507467923,-617.77,0.00015068,2]
[332763637,1721507467934,-653.01,0.00015068,2]
[332763638,1721507467946,-1121.97,0.00015068,2]
[332763639,1721507467957,-2062.41,0.00015068,2]
[332763640,1721507467966,-696.35,0.00015068,2]
[332763641,1721507467976,-500.0,0.00015068,2]
[332763642,1721507467985,-500.0,0.00015068,2]
[332763643,1721507467997,-500.0,0.00015068,2]
[332763644,1721507468007,-1163.39,0.00015068,2]
[332763645,1721507468017,-500.0,0.00015068,2]
[332763646,1721507468027,-634.48094922,0.00015068,2]
[332763647,1721507468037,-1152.29,0.00015068,2]
[332763648,1721507468046,-500.0,0.00015068,2]
[332763649,1721507468056,-500.0,0.00015068,2]
[332763650,1721507468066,-1160.73,0.00015068,2]
[332763651,1721507468075,-500.0,0.00015068,2]
[332763652,1721507468085,-722.0,0.00015068,2]
[332763653,1721507468094,-4128.71,0.00015068,2]
[332763654,1721507468104,-2000.0,0.00015068,2]
[332763655,1721507468113,-568.79,0.00015068,2]
[332763656,1721507468123,-390.2806264,0.00015068,2]
[332763657,1721507468134,-500.0,0.00015068,2]
[332763658,1721507468144,-500.0,0.00015068,2]
[332763659,1721507468153,-698.52,0.00015068,2]
[332763660,1721507468383,-1470.23,0.00015068,2]
[332763661,1721507468510,-500.0,0.00015068,2]
[332763662,1721507468536,-500.0,0.00015068,2]
[332763663,1721507468557,-518.45285291,0.00015068,2]
[332763664,1721507468567,-500.0,0.00015068,2]
[332763665,1721507468576,-594.58,0.00015068,2]
[332763666,1721507468585,-1951.53,0.00015068,2]
[332763667,1721507468595,-612.79,0.00015068,2]
[332763668,1721507468604,-874.33,0.00015068,2]
[332763669,1721507468613,-500.0,0.00015068,2]
[332763670,1721507468623,-500.0,0.00015068,2]
[332763671,1721507468632,-555.88,0.00015068,2]
[332763672,1721507468641,-632.84,0.00015068,2]
[332763673,1721507468651,-438.02356023,0.00015068,2]
[332763674,1721507468660,-604.8,0.00015068,2]
[332763675,1721507468669,-500.0,0.00015068,2]
[332763676,1721507468679,-500.0,0.00015068,2]
[332763677,1721507468688,-500.0,0.00015068,2]
[332763678,1721507468698,-1853.19,0.00015068,2]
[332763679,1721507468707,-500.0,0.00015068,2]
[332763680,1721507468717,-500.0,0.00015068,2]
[332763681,1721507468726,-500.0,0.00015068,2]
[332763682,1721507468736,-500.0,0.00015068,2]
[332763683,1721507468745,-568.79,0.00015068,2]
[332763684,1721507468755,-774.02,0.00015068,2]
[332763685,1721507468765,-500.0,0.00015068,2]
[332763686,1721507468775,-500.0,0.00015068,2]
[332763687,1721507468784,-800.39,0.00015068,2]
[332763688,1721507468794,-500.0,0.00015068,2]
[332763689,1721507468803,-1327.2,0.00015068,2]
[332763690,1721507468812,-902.78,0.00015068,2]
[332763691,1721507468822,-918.39,0.00015068,2]
[332763692,1721507468831,-500.0,0.00015068,2]
[332763693,1721507468840,-846.58,0.00015068,2]
[332763694,1721507468850,-533.42,0.00015068,2]
[332763695,1721507468859,-500.0,0.00015068,2]
[332763696,1721507468869,-500.0,0.00015068,2]
[332763697,1721507468879,-2661.93,0.00015068,2]
[332763698,1721507468889,-983.38,0.00015068,2]
[332763699,1721507468898,-1796.13,0.00015068,2]
[332763700,1721507468908,-1825.24,0.00015068,2]
[332763701,1721507468917,-500.0,0.00015068,2]
[332763702,1721507468926,-2146.19,0.00015068,2]
[332763703,1721507468935,-500.0,0.00015068,2]
[332763704,1721507468945,-500.0,0.00015068,2]
[332763705,1721507468954,-500.0,0.00015068,2]
[332763706,1721507468964,-500.0,0.00015068,2]
[332763707,1721507468974,-133.88210025,0.00015068,2]
[332763708,1721507469230,-366.11789975,0.00015068,2]
[332763709,1721507469239,-500.0,0.00015068,2]
[332763710,1721507469248,-871.65144992,0.00015068,2]
[332763711,1721507469261,-1317.40855008,0.00015068,2]
[332763712,1721507469270,-500.0,0.00015068,2]
[332763713,1721507469282,-500.0,0.00015068,2]
[332763714,1721507469292,-575.38,0.00015068,2]
[332763715,1721507469301,-328.98,0.00015068,2]
[332763716,1721507469311,-2105.24,0.00015068,2]
[332763717,1721507469320,-500.0,0.00015068,2]
[332763718,1721507469330,-724.24,0.00015068,2]
[332763719,1721507469340,-500.0,0.00015068,2]
[332763720,1721507469350,-500.0,0.00015068,2]
[332763721,1721507469361,-500.0,0.00015068,2]
[332763722,1721507469372,-500.0,0.00015068,2]
[332763723,1721507469382,-583.13,0.00015068,2]
[332763724,1721507469391,-963.1,0.00015068,2]
[332763725,1721507469400,-500.0,0.00015068,2]
[332763726,1721507469409,-528.05,0.00015068,2]
[332763727,1721507469419,-500.0,0.00015068,2]
[332763728,1721507469427,-776.96,0.00015068,2]
[332763729,1721507469437,-1350.44,0.00015068,2]
[332763730,1721507469446,-500.0,0.00015068,2]
[332763731,1721507469455,-806.85,0.00015068,2]
[332763732,1721507469464,-1833.59,0.00015068,2]
[332763733,1721507469474,-1111.94,0.00015068,2]
[332763734,1721507469483,-3866.05,0.00015068,2]
[332763735,1721507469492,-500.0,0.00015068,2]
[332763736,1721507469501,-720.16,0.00015068,2]
[332763737,1721507469510,-1045.95,0.00015068,2]
[332763738,1721507469519,-2426.91,0.00015068,2]
[332763739,1721507469529,-500.0,0.00015068,2]
[332763740,1721507469539,-500.0,0.00015068,2]
[332763741,1721507469548,-1586.84,0.00015068,2]
[332763742,1721507469557,-889.11,0.00015068,2]
[332763743,1721507469566,-2116.62,0.00015068,2]
[332763744,1721507469575,-3632.24,0.00015068,2]
[332763745,1721507469584,-1237.75,0.00015068,2]
[332763746,1721507469594,-4757.55,0.00015068,2]
[332763747,1721507469603,-782.62,0.00015068,2]
[332763748,1721507469612,-622.39,0.00015068,2]
[332763749,1721507469625,-2959.65,0.00015068,2]
[332763750,1721507469635,-500.0,0.00015068,2]
[332763751,1721507469646,-500.0,0.00015068,2]
[332763752,1721507469655,-762.0,0.00015068,2]
[332763753,1721507469665,-2539.74,0.00015068,2]
[332763754,1721507469686,-620.28,0.00015068,2]
[332763755,1721507469697,-558.88,0.00015068,2]
[332763756,1721507469707,-3610.2,0.00015068,2]